[Event "*** SCC Grand Prix: Titled Tuesday Blitz"]
[Site "Chess.com"]
[Date "2020.06.23"]
[Round "7"]
[White "LionTheLeon_06"]
[Black "dey2580"]
[Result "1-0"]
[WhiteElo "2701"]
[BlackElo "2549"]
[TimeControl "180+1"]
[EndTime "11:17:43 PDT"]
[Termination "LionTheLeon_06 won on time"]

1. Nf3 {[%clk 0:03:00.9]} 1... Nf6 {[%clk 0:02:59.8]} 2. g3 {[%clk 0:03:01.3]}
2... b6 {[%clk 0:02:59.7]} 3. Bg2 {[%clk 0:03:00.8]} 3... Bb7 {[%clk 0:03:00.4]}
4. O-O {[%clk 0:02:59.7]} 4... g6 {[%clk 0:03:00.9]} 5. b3 {[%clk 0:02:58.1]}
5... Bg7 {[%clk 0:03:01.2]} 6. Bb2 {[%clk 0:02:58.7]} 6... O-O {[%clk
0:03:01.8]} 7. c4 {[%clk 0:02:58.9]} 7... c5 {[%clk 0:03:02.3]} 8. d4 {[%clk
0:02:57.7]} 8... cxd4 {[%clk 0:02:59.9]} 9. Nxd4 {[%clk 0:02:58.3]} 9... Bxg2
{[%clk 0:02:59.4]} 10. Kxg2 {[%clk 0:02:59.2]} 10... Qc8 {[%clk 0:02:59.7]} 11.
Nc3 {[%clk 0:02:58.8]} 11... Qb7+ {[%clk 0:02:59.2]} 12. f3 {[%clk 0:02:58.6]}
12... d5 {[%clk 0:02:58.1]} 13. cxd5 {[%clk 0:02:56.8]} 13... Nxd5 {[%clk
0:02:58.1]} 14. Nxd5 {[%clk 0:02:54.7]} 14... Qxd5 {[%clk 0:02:59]} 15. e4
{[%clk 0:02:44.1]} 15... Qb7 {[%clk 0:02:59]} 16. Rc1 {[%clk 0:02:39]} 16... Rd8
{[%clk 0:02:58.4]} 17. Qc2 {[%clk 0:02:07.6]} 17... Bxd4 {[%clk 0:02:41.6]} 18.
Bxd4 {[%clk 0:01:54.2]} 18... Rxd4 {[%clk 0:02:41.5]} 19. Qc8+ {[%clk
0:01:52.3]} 19... Qxc8 {[%clk 0:02:41.8]} 20. Rxc8+ {[%clk 0:01:52.1]} 20... Kg7
{[%clk 0:02:42.7]} 21. Rf2 {[%clk 0:01:49.1]} 21... b5 {[%clk 0:02:33.4]} 22.
Rfc2 {[%clk 0:01:46.8]} 22... a5 {[%clk 0:02:33.1]} 23. Kh3 {[%clk 0:01:36.9]}
23... a4 {[%clk 0:02:24.3]} 24. e5 {[%clk 0:01:05.5]} 24... axb3 {[%clk
0:01:10.2]} 25. axb3 {[%clk 0:01:06.4]} 25... Rd3 {[%clk 0:00:57]} 26. f4 {[%clk
0:01:06.6]} 26... h5 {[%clk 0:00:53.9]} 27. Re8 {[%clk 0:01:00]} 27... Rd7
{[%clk 0:00:42.9]} 28. Rcc8 {[%clk 0:00:58.3]} 28... f5 {[%clk 0:00:20.5]} 29.
Rg8+ {[%clk 0:00:42.7]} 29... Kf7 {[%clk 0:00:20.4]} 30. Rgf8+ {[%clk 0:00:43]}
30... Ke6 {[%clk 0:00:19.9]} 31. Rxb8 {[%clk 0:00:41.5]} 31... Rxb8 {[%clk
0:00:18.4]} 32. Rxb8 {[%clk 0:00:42.4]} 32... Rd5 {[%clk 0:00:18.5]} 33. Rb6+
{[%clk 0:00:42.4]} 33... Kf7 {[%clk 0:00:18]} 34. Kh4 {[%clk 0:00:40.7]} 34...
Rd2 {[%clk 0:00:18.2]} 35. h3 {[%clk 0:00:39.4]} 35... Rd5 {[%clk 0:00:18.3]}
36. b4 {[%clk 0:00:38.4]} 36... Rd3 {[%clk 0:00:05.2]} 37. Rxb5 {[%clk
0:00:35.5]} 37... Ke6 {[%clk 0:00:05.6]} 38. Rb8 {[%clk 0:00:31.2]} 38... Rb3
{[%clk 0:00:05.1]} 39. b5 {[%clk 0:00:21.8]} 39... Kd5 {[%clk 0:00:04.8]} 40.
Rg8 {[%clk 0:00:20.1]} 40... Rxb5 {[%clk 0:00:03]} 41. Rxg6 {[%clk 0:00:20.5]}
41... Ke4 {[%clk 0:00:03.9]} 42. Kxh5 {[%clk 0:00:20.9]} 42... Kf3 {[%clk
0:00:04]} 43. h4 {[%clk 0:00:20.5]} 43... Rb4 {[%clk 0:00:02.5]} 44. Kh6 {[%clk
0:00:20.2]} 1-0

[Event "*** SCC Grand Prix: Titled Tuesday Blitz"]
[Site "Chess.com"]
[Date "2020.06.23"]
[Round "7"]
[White "HanSchut"]
[Black "MrChampion_Coach"]
[Result "0-1"]
[WhiteElo "2212"]
[BlackElo "2436"]
[TimeControl "180+1"]
[EndTime "11:17:43 PDT"]
[Termination "MrChampion_Coach won by resignation"]

1. e4 {[%clk 0:03:00.9]} 1... c5 {[%clk 0:02:59.8]} 2. Nf3 {[%clk 0:03:00.9]}
2... d6 {[%clk 0:02:59.2]} 3. d4 {[%clk 0:03:01]} 3... cxd4 {[%clk 0:02:59.3]}
4. Nxd4 {[%clk 0:03:01.9]} 4... Nf6 {[%clk 0:02:59.7]} 5. f3 {[%clk 0:03:02.4]}
5... Nc6 {[%clk 0:02:51.9]} 6. c4 {[%clk 0:02:59.7]} 6... g6 {[%clk 0:02:42.1]}
7. Be3 {[%clk 0:02:58.7]} 7... Bg7 {[%clk 0:02:41.7]} 8. Qd2 {[%clk 0:02:59.2]}
8... O-O {[%clk 0:02:38.2]} 9. Nc3 {[%clk 0:02:58.9]} 9... Nxd4 {[%clk
0:02:29.2]} 10. Bxd4 {[%clk 0:02:58.9]} 10... Be6 {[%clk 0:02:29.8]} 11. Rc1
{[%clk 0:02:57.8]} 11... Rc8 {[%clk 0:02:21.2]} 12. b3 {[%clk 0:02:57.4]} 12...
a6 {[%clk 0:02:21.4]} 13. Be2 {[%clk 0:02:54.9]} 13... Qa5 {[%clk 0:02:20.1]}
14. O-O {[%clk 0:02:32.1]} 14... Nd7 {[%clk 0:02:12.8]} 15. Be3 {[%clk
0:02:27.5]} 15... Rfe8 {[%clk 0:01:36.4]} 16. Rc2 {[%clk 0:01:17]} 16... b5
{[%clk 0:01:29.8]} 17. Nd5 {[%clk 0:01:09.2]} 17... Qxd2 {[%clk 0:01:29.2]} 18.
Rxd2 {[%clk 0:01:09.2]} 18... Bxd5 {[%clk 0:01:26.7]} 19. Rxd5 {[%clk
0:01:08.9]} 19... b4 {[%clk 0:01:09.3]} 20. Rfd1 {[%clk 0:00:37.1]} 20... Nc5
{[%clk 0:01:08]} 21. Kf2 {[%clk 0:00:28.6]} 21... a5 {[%clk 0:01:00.2]} 22. R1d2
{[%clk 0:00:17.1]} 22... Bc3 {[%clk 0:00:57.6]} 23. Rd1 {[%clk 0:00:15.9]} 23...
Rc6 {[%clk 0:00:51.2]} 24. Bd4 {[%clk 0:00:15.1]} 24... Bxd4+ {[%clk 0:00:46.7]}
25. R5xd4 {[%clk 0:00:16]} 25... Ra8 {[%clk 0:00:45.2]} 26. Ke3 {[%clk
0:00:11.3]} 26... a4 {[%clk 0:00:44.3]} 27. Rb1 {[%clk 0:00:11.4]} 27... axb3
{[%clk 0:00:44]} 28. axb3 {[%clk 0:00:12.3]} 28... Ra3 {[%clk 0:00:44.4]} 29.
Bd1 {[%clk 0:00:12.4]} 29... Ra2 {[%clk 0:00:44.8]} 30. Rd2 {[%clk 0:00:11.1]}
30... Rca6 {[%clk 0:00:44.8]} 31. Rbb2 {[%clk 0:00:10.5]} 31... Ra1 {[%clk
0:00:44.4]} 32. Be2 {[%clk 0:00:08.8]} 32... Rg1 {[%clk 0:00:43.1]} 33. Kf2
{[%clk 0:00:08.6]} 33... Raa1 {[%clk 0:00:42]} 34. g4 {[%clk 0:00:04.8]} 34...
Rh1 {[%clk 0:00:41.7]} 35. h4 {[%clk 0:00:04.9]} 35... Rxh4 {[%clk 0:00:38.6]}
36. Bf1 {[%clk 0:00:05.3]} 36... Rh1 {[%clk 0:00:38.5]} 37. Be2 {[%clk
0:00:04.3]} 37... Rhc1 {[%clk 0:00:38.4]} 38. Ke3 {[%clk 0:00:04.5]} 38... Re1
{[%clk 0:00:37.7]} 39. Kf2 {[%clk 0:00:04.9]} 39... Rh1 {[%clk 0:00:36.5]} 40.
Kg2 {[%clk 0:00:04.5]} 40... Rhc1 {[%clk 0:00:35.6]} 41. Kf2 {[%clk 0:00:04.8]}
41... Ne6 {[%clk 0:00:35.8]} 42. Ke3 {[%clk 0:00:04.5]} 42... g5 {[%clk
0:00:35.1]} 43. Rd5 {[%clk 0:00:03.1]} 43... f6 {[%clk 0:00:35.2]} 44. c5 {[%clk
0:00:02.9]} 44... Rxc5 {[%clk 0:00:33.6]} 45. Rd4 {[%clk 0:00:01.9]} 45... Nxd4
{[%clk 0:00:33.1]} 46. Kxd4 {[%clk 0:00:02]} 46... e5+ {[%clk 0:00:33.2]} 47.
Kd3 {[%clk 0:00:02]} 47... Rc3+ {[%clk 0:00:33.8]} 48. Kd2 {[%clk 0:00:01.8]}
48... Kf8 {[%clk 0:00:32]} 49. Bc4 {[%clk 0:00:01.7]} 49... Ke7 {[%clk
0:00:32.1]} 50. Bd5 {[%clk 0:00:02.1]} 50... Rxf3 {[%clk 0:00:31.7]} 0-1

[Event "*** SCC Grand Prix: Titled Tuesday Blitz"]
[Site "Chess.com"]
[Date "2020.06.23"]
[Round "7"]
[White "Quiet_Desperation"]
[Black "kleopl"]
[Result "1-0"]
[WhiteElo "1967"]
[BlackElo "2385"]
[TimeControl "180+1"]
[EndTime "11:17:44 PDT"]
[Termination "Quiet_Desperation won on time"]

1. e4 {[%clk 0:03:00.9]} 1... c6 {[%clk 0:02:57.9]} 2. Nf3 {[%clk 0:02:59]} 2...
d5 {[%clk 0:02:58.8]} 3. Nc3 {[%clk 0:02:59]} 3... Nf6 {[%clk 0:02:58.4]} 4. e5
{[%clk 0:02:53.2]} 4... Ne4 {[%clk 0:02:58]} 5. h3 {[%clk 0:02:50.9]} 5... Bf5
{[%clk 0:02:54.6]} 6. Nd4 {[%clk 0:02:49.5]} 6... e6 {[%clk 0:02:50.6]} 7. Nxf5
{[%clk 0:02:48.8]} 7... exf5 {[%clk 0:02:51.2]} 8. d3 {[%clk 0:02:43.9]} 8...
Nxc3 {[%clk 0:02:48.6]} 9. bxc3 {[%clk 0:02:44.6]} 9... d4 {[%clk 0:02:41.6]}
10. Be2 {[%clk 0:02:42.3]} 10... dxc3 {[%clk 0:02:39.7]} 11. O-O {[%clk
0:02:37.8]} 11... Qd4 {[%clk 0:02:36.6]} 12. Bf3 {[%clk 0:02:27.4]} 12... Nd7
{[%clk 0:02:32.4]} 13. Re1 {[%clk 0:02:23.3]} 13... f4 {[%clk 0:01:53.6]} 14.
Re4 {[%clk 0:02:12.8]} 14... Qb6 {[%clk 0:01:47.1]} 15. Bxf4 {[%clk 0:02:12.1]}
15... Nc5 {[%clk 0:01:42.8]} 16. Re1 {[%clk 0:02:08.5]} 16... Ne6 {[%clk
0:01:40.6]} 17. Be3 {[%clk 0:02:05.5]} 17... Qc7 {[%clk 0:01:28.3]} 18. d4
{[%clk 0:02:04.7]} 18... Rd8 {[%clk 0:01:27.7]} 19. Be4 {[%clk 0:01:58]} 19...
Bc5 {[%clk 0:01:24.8]} 20. Qg4 {[%clk 0:01:40.4]} 20... Bxd4 {[%clk 0:01:23.2]}
21. Bf5 {[%clk 0:01:37.5]} 21... h5 {[%clk 0:00:58.2]} 22. Qf3 {[%clk
0:01:17.8]} 22... Bxe3 {[%clk 0:00:26]} 23. Bxe6 {[%clk 0:01:08.2]} 23... Bxf2+
{[%clk 0:00:20.2]} 24. Qxf2 {[%clk 0:01:04.5]} 24... fxe6 {[%clk 0:00:20.2]} 25.
Qf3 {[%clk 0:01:03]} 25... Qf7 {[%clk 0:00:14.5]} 26. Qxc3 {[%clk 0:01:02.4]}
26... O-O {[%clk 0:00:14.7]} 27. Rf1 {[%clk 0:00:55.9]} 27... Qg6 {[%clk
0:00:14.8]} 28. Qb3 {[%clk 0:00:53.6]} 28... b6 {[%clk 0:00:14.2]} 29. Rad1
{[%clk 0:00:47.1]} 29... Rxd1 {[%clk 0:00:12.6]} 30. Rxd1 {[%clk 0:00:44.2]}
30... Qf5 {[%clk 0:00:12.8]} 31. Qc3 {[%clk 0:00:35]} 31... c5 {[%clk
0:00:11.7]} 32. Kh1 {[%clk 0:00:34.6]} 32... h4 {[%clk 0:00:10.7]} 33. a4 {[%clk
0:00:33.8]} 33... Qf2 {[%clk 0:00:09.9]} 34. Qc4 {[%clk 0:00:28.4]} 34... Qf5
{[%clk 0:00:08.3]} 35. Qxh4 {[%clk 0:00:26.2]} 35... Qxc2 {[%clk 0:00:06]} 36.
Re1 {[%clk 0:00:24.6]} 36... Qf5 {[%clk 0:00:05.2]} 37. Qc4 {[%clk 0:00:22.6]}
37... Rd8 {[%clk 0:00:03.9]} 38. Qa6 {[%clk 0:00:22]} 38... Qf7 {[%clk
0:00:03.4]} 39. Rf1 {[%clk 0:00:20.2]} 39... Qd7 {[%clk 0:00:03.7]} 40. Qe2
{[%clk 0:00:18]} 40... Qc7 {[%clk 0:00:03.3]} 41. Qe4 {[%clk 0:00:16.7]} 41...
c4 {[%clk 0:00:03.5]} 42. Qg4 {[%clk 0:00:14.6]} 42... Re8 {[%clk 0:00:01.4]}
43. Rf4 {[%clk 0:00:11.5]} 1-0

[Event "*** SCC Grand Prix: Titled Tuesday Blitz"]
[Site "Chess.com"]
[Date "2020.06.23"]
[Round "7"]
[White "saikrishnaReturns"]
[Black "Makswolf200817"]
[Result "1-0"]
[WhiteElo "2640"]
[BlackElo "2427"]
[TimeControl "180+1"]
[EndTime "11:17:45 PDT"]
[Termination "saikrishnaReturns won by resignation"]

1. e4 {[%clk 0:03:00.9]} 1... e6 {[%clk 0:02:59.9]} 2. d3 {[%clk 0:03:00.8]}
2... d5 {[%clk 0:03:00.5]} 3. Nd2 {[%clk 0:03:01.7]} 3... Nf6 {[%clk 0:02:58.8]}
4. Ngf3 {[%clk 0:03:01.9]} 4... c5 {[%clk 0:02:58.9]} 5. g3 {[%clk 0:03:01.5]}
5... g6 {[%clk 0:02:58.3]} 6. Bg2 {[%clk 0:03:01.4]} 6... Bg7 {[%clk 0:02:59]}
7. O-O {[%clk 0:03:01.1]} 7... O-O {[%clk 0:02:59.5]} 8. Re1 {[%clk 0:03:01.7]}
8... Nc6 {[%clk 0:02:59.8]} 9. Qe2 {[%clk 0:02:57.4]} 9... a5 {[%clk 0:02:59.3]}
10. a4 {[%clk 0:02:55.2]} 10... b6 {[%clk 0:02:57.6]} 11. Nf1 {[%clk 0:02:50.8]}
11... dxe4 {[%clk 0:02:55.6]} 12. dxe4 {[%clk 0:02:51]} 12... Ba6 {[%clk
0:02:55.4]} 13. Qe3 {[%clk 0:02:51.1]} 13... Nb4 {[%clk 0:02:46.9]} 14. e5
{[%clk 0:02:29.3]} 14... Nxc2 {[%clk 0:02:32.8]} 15. exf6 {[%clk 0:02:28.8]}
15... Nxe3 {[%clk 0:02:28.5]} 16. fxg7 {[%clk 0:02:28.8]} 16... Nc2 {[%clk
0:02:09.7]} 17. gxf8=Q+ {[%clk 0:02:00.5]} 17... Qxf8 {[%clk 0:02:10.6]} 18. Bd2
{[%clk 0:02:00.6]} 18... Nxa1 {[%clk 0:02:09.4]} 19. Rxa1 {[%clk 0:02:00.5]}
19... Rd8 {[%clk 0:02:06.4]} 20. Bc3 {[%clk 0:02:00.6]} 20... f6 {[%clk
0:02:05.2]} 21. Ne3 {[%clk 0:01:57.6]} 21... e5 {[%clk 0:02:04.6]} 22. h4 {[%clk
0:01:44.8]} 22... h5 {[%clk 0:02:03.4]} 23. Nd2 {[%clk 0:01:42]} 23... Qf7
{[%clk 0:01:59.8]} 24. Ne4 {[%clk 0:01:39.4]} 24... Kg7 {[%clk 0:01:57.2]} 25.
Nf1 {[%clk 0:01:30.8]} 25... Bb7 {[%clk 0:01:53.3]} 26. Nfd2 {[%clk 0:01:27.4]}
26... Qc7 {[%clk 0:01:47.7]} 27. f4 {[%clk 0:01:16.3]} 27... exf4 {[%clk
0:00:58.5]} 28. Bxf6+ {[%clk 0:01:15.6]} 28... Kh6 {[%clk 0:00:58.7]} 29. Bg5+
{[%clk 0:01:14.5]} 29... Kg7 {[%clk 0:00:58.1]} 30. Bxf4 {[%clk 0:01:06.1]}
30... Qd7 {[%clk 0:00:53.7]} 31. Be5+ {[%clk 0:00:58.8]} 31... Kh6 {[%clk
0:00:50.9]} 32. Rf1 {[%clk 0:00:58.3]} 32... Qe6 {[%clk 0:00:44]} 33. Bc3 {[%clk
0:00:54.9]} 33... Qd5 {[%clk 0:00:38.4]} 34. Rf6 {[%clk 0:00:48.6]} 34... Re8
{[%clk 0:00:35.9]} 35. Rxb6 {[%clk 0:00:47.3]} 35... Bc6 {[%clk 0:00:34.1]} 36.
Ra6 {[%clk 0:00:34.1]} 36... Bxa4 {[%clk 0:00:32.3]} 37. Ng5 {[%clk 0:00:20.3]}
37... Re1+ {[%clk 0:00:28.7]} 38. Nf1 {[%clk 0:00:19.5]} 38... Rxf1+ {[%clk
0:00:26.8]} 39. Bxf1 {[%clk 0:00:20.4]} 39... c4 {[%clk 0:00:19]} 40. Rxa5
{[%clk 0:00:20.4]} 40... Qc6 {[%clk 0:00:17.6]} 41. Bg2 {[%clk 0:00:19.4]} 41...
Qe8 {[%clk 0:00:15.5]} 42. Kh2 {[%clk 0:00:19.1]} 42... Bd7 {[%clk 0:00:14.4]}
43. Ra7 {[%clk 0:00:19]} 43... Qc8 {[%clk 0:00:08.2]} 44. Ne4 {[%clk 0:00:18.9]}
44... Kh7 {[%clk 0:00:07.4]} 45. Rxd7+ {[%clk 0:00:17.4]} 1-0

[Event "*** SCC Grand Prix: Titled Tuesday Blitz"]
[Site "Chess.com"]
[Date "2020.06.23"]
[Round "7"]
[White "louis198"]
[Black "profofchess"]
[Result "1-0"]
[WhiteElo "2488"]
[BlackElo "2376"]
[TimeControl "180+1"]
[EndTime "11:17:45 PDT"]
[Termination "louis198 won on time"]

1. d4 {[%clk 0:02:44.5]} 1... Nf6 {[%clk 0:02:59.5]} 2. Nf3 {[%clk 0:02:45.4]}
2... e6 {[%clk 0:02:59]} 3. Bf4 {[%clk 0:02:45.9]} 3... c5 {[%clk 0:02:49.5]} 4.
e3 {[%clk 0:02:45.6]} 4... Be7 {[%clk 0:02:46.6]} 5. h3 {[%clk 0:02:41.6]} 5...
b6 {[%clk 0:02:46.3]} 6. c4 {[%clk 0:02:37.5]} 6... cxd4 {[%clk 0:02:44.2]} 7.
exd4 {[%clk 0:02:37.3]} 7... Bb7 {[%clk 0:02:44.6]} 8. Nc3 {[%clk 0:02:31.8]}
8... O-O {[%clk 0:02:44.7]} 9. Be2 {[%clk 0:02:30.8]} 9... d5 {[%clk 0:02:44.5]}
10. O-O {[%clk 0:02:25.3]} 10... dxc4 {[%clk 0:02:41.5]} 11. Bxc4 {[%clk
0:02:24.7]} 11... Nd5 {[%clk 0:02:33.3]} 12. Bg3 {[%clk 0:02:23.6]} 12... Nxc3
{[%clk 0:02:22.9]} 13. bxc3 {[%clk 0:02:23.2]} 13... Nd7 {[%clk 0:02:23]} 14.
Qb3 {[%clk 0:02:17.3]} 14... Bxf3 {[%clk 0:02:18.1]} 15. gxf3 {[%clk 0:02:17]}
15... Nf6 {[%clk 0:02:15.5]} 16. Rfe1 {[%clk 0:02:15.9]} 16... Kh8 {[%clk
0:01:56.8]} 17. Bf1 {[%clk 0:02:06.9]} 17... Bd6 {[%clk 0:01:55]} 18. Bg2 {[%clk
0:02:01.7]} 18... Nd5 {[%clk 0:01:48.6]} 19. Re4 {[%clk 0:01:57.6]} 19... Qc7
{[%clk 0:01:31.9]} 20. c4 {[%clk 0:01:40.9]} 20... Bxg3 {[%clk 0:01:01.1]} 21.
cxd5 {[%clk 0:01:31.9]} 21... Bh2+ {[%clk 0:01:00.5]} 22. Kh1 {[%clk 0:01:31.8]}
22... exd5 {[%clk 0:00:59.4]} 23. Qxd5 {[%clk 0:01:31.4]} 23... Rad8 {[%clk
0:00:51]} 24. Qh5 {[%clk 0:01:25.8]} 24... f5 {[%clk 0:00:46.2]} 25. Ree1 {[%clk
0:01:02.5]} 25... Bf4 {[%clk 0:00:36]} 26. Rad1 {[%clk 0:00:46.1]} 26... Qd6
{[%clk 0:00:35.5]} 27. Qh4 {[%clk 0:00:42.4]} 27... b5 {[%clk 0:00:18.6]} 28.
Qe7 {[%clk 0:00:39.5]} 28... a5 {[%clk 0:00:15.7]} 29. d5 {[%clk 0:00:36.4]}
29... b4 {[%clk 0:00:10.8]} 30. Qxd6 {[%clk 0:00:25.8]} 30... Rxd6 {[%clk
0:00:11.7]} 31. Re6 {[%clk 0:00:25.7]} 31... Rfd8 {[%clk 0:00:11.2]} 32. Rxd6
{[%clk 0:00:26]} 32... Rxd6 {[%clk 0:00:10.6]} 33. Bf1 {[%clk 0:00:26.6]} 33...
Kg8 {[%clk 0:00:08.6]} 34. Bb5 {[%clk 0:00:26.6]} 34... Kf7 {[%clk 0:00:06.7]}
35. Bc6 {[%clk 0:00:27]} 35... Be5 {[%clk 0:00:04.2]} 36. Re1 {[%clk 0:00:26.7]}
36... Kf6 {[%clk 0:00:04.5]} 37. Kg2 {[%clk 0:00:27.1]} 37... f4 {[%clk
0:00:04.6]} 38. Kf1 {[%clk 0:00:25.7]} 38... Rd8 {[%clk 0:00:04.8]} 39. Ke2
{[%clk 0:00:25.9]} 39... Rb8 {[%clk 0:00:04.3]} 40. Kd3 {[%clk 0:00:26.1]} 40...
b3 {[%clk 0:00:04.6]} 41. axb3 {[%clk 0:00:26.2]} 41... Rxb3+ {[%clk 0:00:04.8]}
42. Kc4 {[%clk 0:00:26.4]} 42... Rb2 {[%clk 0:00:05]} 43. Bd7 {[%clk 0:00:21.5]}
43... Rxf2 {[%clk 0:00:03.1]} 44. Bg4 {[%clk 0:00:21.5]} 44... Rd2 {[%clk
0:00:01.7]} 45. Rb1 {[%clk 0:00:20.5]} 1-0

[Event "*** SCC Grand Prix: Titled Tuesday Blitz"]
[Site "Chess.com"]
[Date "2020.06.23"]
[Round "7"]
[White "dpopadic"]
[Black "JoachimMouhamad"]
[Result "1-0"]
[WhiteElo "2344"]
[BlackElo "2441"]
[TimeControl "180+1"]
[EndTime "11:17:47 PDT"]
[Termination "dpopadic won by resignation"]

1. e4 {[%clk 0:03:00.9]} 1... e5 {[%clk 0:02:59.3]} 2. Nf3 {[%clk 0:03:00.2]}
2... Nc6 {[%clk 0:02:59.6]} 3. Bb5 {[%clk 0:02:58.8]} 3... a6 {[%clk 0:02:59.6]}
4. Ba4 {[%clk 0:02:57.9]} 4... Nf6 {[%clk 0:02:56.4]} 5. O-O {[%clk 0:02:57.2]}
5... Be7 {[%clk 0:02:55.4]} 6. Re1 {[%clk 0:02:56.6]} 6... b5 {[%clk 0:02:54.9]}
7. Bb3 {[%clk 0:02:56.8]} 7... d6 {[%clk 0:02:54.2]} 8. c3 {[%clk 0:02:56.4]}
8... O-O {[%clk 0:02:53.6]} 9. h3 {[%clk 0:02:56.6]} 9... Nb8 {[%clk 0:02:52.9]}
10. d3 {[%clk 0:02:56.6]} 10... Nbd7 {[%clk 0:02:43.6]} 11. Nbd2 {[%clk
0:02:56.1]} 11... Bb7 {[%clk 0:02:40.8]} 12. Nf1 {[%clk 0:02:55.3]} 12... Re8
{[%clk 0:02:38.7]} 13. Ng3 {[%clk 0:02:55.2]} 13... h6 {[%clk 0:01:58.4]} 14.
Nh2 {[%clk 0:02:45]} 14... Bf8 {[%clk 0:01:51]} 15. Ng4 {[%clk 0:02:44.5]} 15...
d5 {[%clk 0:01:32.5]} 16. Nxf6+ {[%clk 0:02:34.3]} 16... Nxf6 {[%clk 0:01:29.7]}
17. Qf3 {[%clk 0:02:33.6]} 17... c5 {[%clk 0:01:23.5]} 18. Be3 {[%clk
0:02:27.5]} 18... c4 {[%clk 0:01:19.6]} 19. Bc2 {[%clk 0:02:26.5]} 19... cxd3
{[%clk 0:01:03.7]} 20. Bxd3 {[%clk 0:02:25.8]} 20... dxe4 {[%clk 0:01:04.1]} 21.
Bxe4 {[%clk 0:02:23.6]} 21... Nxe4 {[%clk 0:01:03.9]} 22. Nxe4 {[%clk
0:02:23.4]} 22... Qh4 {[%clk 0:00:50.5]} 23. Nf6+ {[%clk 0:01:56.4]} 23... Qxf6
{[%clk 0:00:49.8]} 24. Qxb7 {[%clk 0:01:56.1]} 24... Rab8 {[%clk 0:00:41.2]} 25.
Qe4 {[%clk 0:01:53.4]} 25... b4 {[%clk 0:00:39.8]} 26. c4 {[%clk 0:01:50.9]}
26... Qe6 {[%clk 0:00:33.1]} 27. Rad1 {[%clk 0:01:47.5]} 27... Rbc8 {[%clk
0:00:29.5]} 28. b3 {[%clk 0:01:47]} 28... f5 {[%clk 0:00:29.4]} 29. Qd5 {[%clk
0:01:46.2]} 29... Rc7 {[%clk 0:00:17.7]} 30. Bc1 {[%clk 0:01:42.3]} 30... Qxd5
{[%clk 0:00:16.8]} 31. Rxd5 {[%clk 0:01:41.7]} 31... Rc5 {[%clk 0:00:12.8]} 32.
Red1 {[%clk 0:01:30.7]} 32... Rxd5 {[%clk 0:00:12.6]} 33. Rxd5 {[%clk
0:01:30.6]} 33... Kf7 {[%clk 0:00:12.2]} 34. Be3 {[%clk 0:01:27.4]} 34... Ke6
{[%clk 0:00:12.1]} 35. f3 {[%clk 0:01:23.5]} 35... g5 {[%clk 0:00:11.1]} 36. Kf1
{[%clk 0:01:22.6]} 36... Ra8 {[%clk 0:00:09.6]} 37. Ke2 {[%clk 0:01:13.3]} 37...
a5 {[%clk 0:00:09.9]} 38. Bc5 {[%clk 0:01:10.5]} 38... Bxc5 {[%clk 0:00:04.9]}
39. Rxc5 {[%clk 0:01:10.1]} 39... a4 {[%clk 0:00:05.8]} 40. Rb5 {[%clk
0:01:07.6]} 40... axb3 {[%clk 0:00:05.8]} 41. axb3 {[%clk 0:01:07.7]} 41... Ra2+
{[%clk 0:00:06.3]} 42. Kf1 {[%clk 0:01:07.7]} 42... e4 {[%clk 0:00:06.4]} 43.
fxe4 {[%clk 0:01:02.4]} 43... fxe4 {[%clk 0:00:07.3]} 44. Rxb4 {[%clk
0:00:48.9]} 44... Ke5 {[%clk 0:00:07.8]} 45. c5 {[%clk 0:00:46.8]} 45... Rc2
{[%clk 0:00:05.8]} 46. Rc4 {[%clk 0:00:37.2]} 46... Rb2 {[%clk 0:00:06]} 47. c6
{[%clk 0:00:35.3]} 47... Rxb3 {[%clk 0:00:01.5]} 48. c7 {[%clk 0:00:34.3]} 48...
Rb1+ {[%clk 0:00:02.4]} 49. Kf2 {[%clk 0:00:34.4]} 49... Rb2+ {[%clk 0:00:03.3]}
50. Kg1 {[%clk 0:00:33.3]} 50... Rb1+ {[%clk 0:00:03.4]} 51. Kh2 {[%clk
0:00:33.3]} 51... Rb2 {[%clk 0:00:03.9]} 1-0

[Event "*** SCC Grand Prix: Titled Tuesday Blitz"]
[Site "Chess.com"]
[Date "2020.06.23"]
[Round "7"]
[White "XiaoKangZhong"]
[Black "Vuk2000"]
[Result "0-1"]
[WhiteElo "2405"]
[BlackElo "2628"]
[TimeControl "180+1"]
[EndTime "11:17:49 PDT"]
[Termination "Vuk2000 won by resignation"]

1. e4 {[%clk 0:03:00.9]} 1... e6 {[%clk 0:02:59.8]} 2. d4 {[%clk 0:02:55.4]}
2... d5 {[%clk 0:03:00.2]} 3. Nd2 {[%clk 0:02:54.7]} 3... Nc6 {[%clk 0:02:58.6]}
4. Bb5 {[%clk 0:02:44.4]} 4... a6 {[%clk 0:02:57.4]} 5. Bxc6+ {[%clk 0:02:40.5]}
5... bxc6 {[%clk 0:02:58.3]} 6. Ngf3 {[%clk 0:02:40.2]} 6... Nf6 {[%clk
0:02:57.2]} 7. e5 {[%clk 0:02:37.4]} 7... Nd7 {[%clk 0:02:57.4]} 8. O-O {[%clk
0:02:38]} 8... c5 {[%clk 0:02:57.4]} 9. c4 {[%clk 0:02:37.8]} 9... Bb7 {[%clk
0:02:51.6]} 10. Re1 {[%clk 0:02:22.8]} 10... cxd4 {[%clk 0:02:49.5]} 11. Nxd4
{[%clk 0:02:22]} 11... c5 {[%clk 0:02:47.2]} 12. Nc2 {[%clk 0:01:58.7]} 12...
Nb6 {[%clk 0:02:45.1]} 13. b3 {[%clk 0:01:47.5]} 13... Be7 {[%clk 0:02:39.3]}
14. Qg4 {[%clk 0:01:42.5]} 14... Qd7 {[%clk 0:02:33.4]} 15. cxd5 {[%clk
0:01:34.3]} 15... Nxd5 {[%clk 0:02:12.9]} 16. Nc4 {[%clk 0:01:25.2]} 16... Kf8
{[%clk 0:01:38]} 17. Ba3 {[%clk 0:01:22]} 17... h5 {[%clk 0:01:35.8]} 18. Qg3
{[%clk 0:01:17.9]} 18... h4 {[%clk 0:01:34.4]} 19. Qg4 {[%clk 0:01:17.9]} 19...
h3 {[%clk 0:01:31]} 20. g3 {[%clk 0:01:17.7]} 20... Nb4 {[%clk 0:00:55.4]} 21.
Bxb4 {[%clk 0:00:52.4]} 21... Qc6 {[%clk 0:00:54.9]} 22. f3 {[%clk 0:00:40]}
22... cxb4 {[%clk 0:00:54.2]} 23. Nd4 {[%clk 0:00:30.4]} 23... Bc5 {[%clk
0:00:52.9]} 24. Red1 {[%clk 0:00:29]} 24... Qxf3 {[%clk 0:00:44.7]} 25. Qxf3
{[%clk 0:00:22.1]} 25... Bxf3 {[%clk 0:00:45.6]} 26. Rd3 {[%clk 0:00:21.8]}
26... Rd8 {[%clk 0:00:34]} 27. Nd6 {[%clk 0:00:17.4]} 27... Be2 {[%clk
0:00:24.6]} 28. Rd2 {[%clk 0:00:13]} 28... Bxd6 {[%clk 0:00:24.4]} 29. exd6
{[%clk 0:00:11.5]} 29... Rxd6 {[%clk 0:00:24.6]} 30. Rc1 {[%clk 0:00:10.7]}
30... Kg8 {[%clk 0:00:16.4]} 31. Rc7 {[%clk 0:00:07.3]} 31... Bb5 {[%clk
0:00:15.2]} 32. Kf2 {[%clk 0:00:04.9]} 32... Kh7 {[%clk 0:00:14.6]} 33. Rxf7
{[%clk 0:00:04.3]} 33... Rhd8 {[%clk 0:00:14.8]} 34. Ke3 {[%clk 0:00:03.8]}
34... e5 {[%clk 0:00:10.6]} 35. Rxg7+ {[%clk 0:00:03.4]} 35... Kh8 {[%clk
0:00:06.5]} 36. Nf3 {[%clk 0:00:01.2]} 36... Rxd2 {[%clk 0:00:05.9]} 37. Nxd2
{[%clk 0:00:01.5]} 37... Kxg7 {[%clk 0:00:05.3]} 0-1